[Event "Swedish Chess Championship 2021: Mastarklassen-Elit"]
[Site "Scandic Helsingborg Nord, Florettgatan 41, Helsingborg, Sweden"]
[Date "2021.07.09"]
[Round "7.2"]
[White "Furhoff, Johan"]
[Black "Sorensen, Hampus"]
[Result "1-0"]
[TimeControl "90 minutes for 40 moves + 30 minutes for the rest of the game + 30 seconds per move from move one."]
[WhiteTitle "IM"]
[BlackTitle "FM"]
[WhiteFideId "1701797"]
[BlackFideId "8703884"]
[WhiteElo "2324"]
[BlackElo "2392"]

1. e4 {[%clk 01:30:54]} {[%emt 00:00:05]} e5 {[%clk 01:29:56]} {[%emt
00:01:00]} 2. f4 {[%clk 01:31:20]} {[%emt 00:00:09]} exf4 {[%clk 01:30:02]}
{[%emt 00:00:24]} 3. Nf3 {[%clk 01:31:43]} {[%emt 00:00:06]} g5 {[%clk
01:29:55]} {[%emt 00:00:37]} 4. h4 {[%clk 01:32:02]} {[%emt 00:00:12]} g4
{[%clk 01:28:41]} {[%emt 00:01:44]} 5. Ne5 {[%clk 01:32:27]} {[%emt 00:00:05]}
Nf6 {[%clk 01:28:05]} {[%emt 00:01:06]} 6. Bc4 {[%clk 01:32:46]} {[%emt
00:00:11]} d5 {[%clk 01:28:03]} {[%emt 00:00:32]} 7. exd5 {[%clk 01:33:03]}
{[%emt 00:00:14]} Bd6 {[%clk 01:27:30]} {[%emt 00:01:03]} 8. d4 {[%clk
01:33:08]} {[%emt 00:00:24]} Nh5 {[%clk 01:26:53]} {[%emt 00:01:07]} 9. Nc3
{[%clk 01:33:27]} {[%emt 00:00:11]} Nd7 {[%clk 01:16:18]} {[%emt 00:11:06]} 10.
Qxg4 {[%clk 01:14:41]} {[%emt 00:19:15]} Ng3 {[%clk 00:53:24]} {[%emt
00:23:24]} 11. Bb5 {[%clk 00:38:19]} {[%emt 00:36:53]} a6 {[%clk 00:39:09]}
{[%emt 00:14:45]} 12. Qxf4 {[%clk 00:26:47]} {[%emt 00:12:01]} Bxe5 {[%clk
00:34:39]} {[%emt 00:05:00]} 13. Qxe5+ {[%clk 00:27:08]} {[%emt 00:00:10]} Qe7
{[%clk 00:35:04]} {[%emt 00:00:05]} 14. Qxe7+ {[%clk 00:27:31]} {[%emt
00:00:07]} Kxe7 {[%clk 00:35:28]} {[%emt 00:00:06]} 15. d6+ {[%clk 00:27:52]}
{[%emt 00:00:10]} Kf6 {[%clk 00:28:57]} {[%emt 00:07:00]} 16. Rh3 {[%clk
00:25:58]} {[%emt 00:02:24]} axb5 {[%clk 00:27:28]} {[%emt 00:01:59]} 17. Nd5+
{[%clk 00:24:05]} {[%emt 00:02:24]} Kf5 {[%clk 00:25:44]} {[%emt 00:02:13]} 18.
Rxg3 {[%clk 00:24:15]} {[%emt 00:00:20]} cxd6 {[%clk 00:25:58]} {[%emt
00:00:16]} 19. Rg5+ {[%clk 00:23:27]} {[%emt 00:01:17]} Ke4 {[%clk 00:26:21]}
{[%emt 00:00:06]} 20. Nc3+ {[%clk 00:23:39]} {[%emt 00:00:19]} Kxd4 {[%clk
00:26:40]} {[%emt 00:00:12]} 21. Be3+ {[%clk 00:23:58]} {[%emt 00:00:10]} Kc4
{[%clk 00:27:00]} {[%emt 00:00:09]} 22. Rg4# {[%emt 00:00:07]} 1-0

[Event "Swedish Chess Championship 2021: Mastarklassen-Elit"]
[Site "Scandic Helsingborg Nord, Florettgatan 41, Helsingborg, Sweden"]
[Date "2021.07.09"]
[Round "7.3"]
[White "Johansson, Thomas"]
[Black "Thorn, Eric"]
[Result "0-1"]
[TimeControl "90 minutes for 40 moves + 30 minutes for the rest of the game + 30 seconds per move from move one."]
[BlackTitle "FM"]
[WhiteFideId "1702998"]
[BlackFideId "1710729"]
[WhiteElo "2254"]
[BlackElo "2271"]

1. c4 {[%clk 01:30:53]} {[%emt 00:00:06]} e5 {[%clk 01:28:10]} {[%emt
00:02:51]} 2. Nc3 {[%clk 01:30:46]} {[%emt 00:00:35]} Bb4 {[%clk 01:26:47]}
{[%emt 00:01:54]} 3. Nd5 {[%clk 01:31:04]} {[%emt 00:00:12]} Be7 {[%clk
01:27:08]} {[%emt 00:00:09]} 4. g3 {[%clk 01:25:29]} {[%emt 00:06:05]} Nf6
{[%clk 01:27:20]} {[%emt 00:00:18]} 5. Nxf6+ {[%clk 01:24:24]} {[%emt
00:01:36]} Bxf6 {[%clk 01:27:30]} {[%emt 00:00:20]} 6. Bg2 {[%clk 01:24:39]}
{[%emt 00:00:14]} O-O {[%clk 01:25:03]} {[%emt 00:02:57]} 7. d3 {[%clk
01:24:30]} {[%emt 00:00:39]} c6 {[%clk 01:23:29]} {[%emt 00:02:04]} 8. e4
{[%clk 01:23:40]} {[%emt 00:01:20]} d5 {[%clk 01:10:06]} {[%emt 00:13:52]} 9.
exd5 {[%clk 01:22:00]} {[%emt 00:02:10]} cxd5 {[%clk 01:09:59]} {[%emt
00:00:38]} 10. Bxd5 {[%clk 01:22:07]} {[%emt 00:00:23]} Nc6 {[%clk 01:10:22]}
{[%emt 00:00:06]} 11. Be3 {[%clk 01:15:26]} {[%emt 00:07:12]} Nd4 {[%clk
00:59:02]} {[%emt 00:11:51]} 12. Bxd4 {[%clk 01:14:29]} {[%emt 00:01:26]} exd4
{[%clk 00:59:27]} {[%emt 00:00:05]} 13. Kf1 {[%clk 01:14:47]} {[%emt 00:00:10]}
Be6 {[%clk 00:52:52]} {[%emt 00:07:08]} 14. Be4 {[%clk 01:12:59]} {[%emt
00:02:17]} b5 {[%clk 00:38:09]} {[%emt 00:15:13]} 15. Qh5 {[%clk 00:58:46]}
{[%emt 00:14:43]} g6 {[%clk 00:38:05]} {[%emt 00:00:34]} 16. Qxb5 {[%clk
00:59:07]} {[%emt 00:00:09]} Rb8 {[%clk 00:37:48]} {[%emt 00:00:47]} 17. Qa4
{[%clk 00:59:21]} {[%emt 00:00:16]} Rxb2 {[%clk 00:36:23]} {[%emt 00:01:55]} 18.
h3 {[%clk 00:49:58]} {[%emt 00:09:53]} Qb8 {[%clk 00:32:57]} {[%emt 00:03:56]}
19. Nf3 {[%clk 00:46:35]} {[%emt 00:03:54]} Rxf2+ {[%clk 00:32:16]} {[%emt
00:01:12]} 20. Kxf2 {[%clk 00:45:55]} {[%emt 00:01:09]} Qb2+ {[%clk 00:32:41]}
{[%emt 00:00:05]} 21. Nd2 {[%clk 00:43:47]} {[%emt 00:02:38]} Qxd2+ {[%clk
00:33:04]} {[%emt 00:00:07]} 22. Kf1 {[%clk 00:43:32]} {[%emt 00:00:45]} Rb8
{[%clk 00:20:27]} {[%emt 00:13:06]} 23. Qd1 {[%clk 00:40:10]} {[%emt 00:03:51]}
Qg5 {[%clk 00:20:53]} {[%emt 00:00:05]} 24. Qf3 {[%clk 00:36:03]} {[%emt
00:04:37]} Be5 {[%clk 00:16:37]} {[%emt 00:04:46]} 25. g4 {[%clk 00:30:59]}
{[%emt 00:05:33]} Rb6 {[%clk 00:10:26]} {[%emt 00:06:42]} 26. c5 {[%clk
00:25:52]} {[%emt 00:05:37]} Bxg4 {[%clk 00:02:52]} {[%emt 00:08:04]} 27. Qxg4
{[%clk 00:20:29]} {[%emt 00:05:53]} Rf6+ {[%clk 00:03:20]} {[%emt 00:00:02]} 28.
Ke1 {[%clk 00:20:42]} {[%emt 00:00:16]} Qe3+ {[%clk 00:02:30]} {[%emt
00:01:19]} 29. Qe2 {[%clk 00:21:04]} {[%emt 00:00:09]} Qg3+ {[%clk 00:02:10]}
{[%emt 00:00:49]} 30. Kd1 {[%clk 00:20:49]} {[%emt 00:00:45]} Rf2 {[%clk
00:01:20]} {[%emt 00:01:21]} 31. Qe1 {[%clk 00:20:54]} {[%emt 00:00:24]} f5
{[%clk 00:00:45]} {[%emt 00:01:06]} 32. Bd5+ {[%clk 00:18:37]} {[%emt
00:02:47]} Kg7 {[%clk 00:01:04]} {[%emt 00:00:11]} 33. Kc1 {[%clk 00:15:58]}
{[%emt 00:03:09]} Bf4+ {[%clk 00:01:26]} {[%emt 00:00:08]} 34. Kb1 {[%clk
00:16:15]} {[%emt 00:00:13]} Qxd3# {[%clk 00:01:51]} {[%emt 00:00:05]} 0-1

[Event "Swedish Chess Championship 2021: Mastarklassen-Elit"]
[Site "Scandic Helsingborg Nord, Florettgatan 41, Helsingborg, Sweden"]
[Date "2021.07.09"]
[Round "7.4"]
[White "Jogstad, Martin"]
[Black "Lindberg, Bengt"]
[Result "1-0"]
[TimeControl "90 minutes for 40 moves + 30 minutes for the rest of the game + 30 seconds per move from move one."]
[WhiteTitle "FM"]
[BlackTitle "IM"]
[WhiteFideId "1715364"]
[BlackFideId "1700359"]
[WhiteElo "2301"]
[BlackElo "2392"]

1. c4 {[%clk 01:30:49]} {[%emt 00:00:04]} e6 {[%clk 01:27:30]} {[%emt
00:03:36]} 2. g3 {[%clk 01:30:51]} {[%emt 00:00:29]} c5 {[%clk 01:27:35]}
{[%emt 00:00:24]} 3. Bg2 {[%clk 01:30:59]} {[%emt 00:00:22]} Nc6 {[%clk
01:27:48]} {[%emt 00:00:17]} 4. Nf3 {[%clk 01:31:21]} {[%emt 00:00:08]} Nf6
{[%clk 01:27:35]} {[%emt 00:00:43]} 5. O-O {[%clk 01:31:42]} {[%emt 00:00:08]}
Be7 {[%clk 01:27:47]} {[%emt 00:00:17]} 6. b3 {[%clk 01:31:55]} {[%emt
00:00:18]} O-O {[%clk 01:27:25]} {[%emt 00:00:52]} 7. Bb2 {[%emt 00:00:18]} d5
{[%clk 01:25:39]} {[%emt 00:02:16]} 8. cxd5 {[%clk 01:32:20]} {[%emt 00:00:18]}
exd5 {[%clk 01:25:21]} {[%emt 00:00:47]} 9. d4 {[%clk 01:32:27]} {[%emt
00:00:23]} Re8 {[%clk 01:24:53]} {[%emt 00:00:58]} 10. dxc5 {[%clk 01:32:20]}
{[%emt 00:00:38]} Bxc5 {[%clk 01:25:04]} {[%emt 00:00:18]} 11. e3 {[%clk
01:31:21]} {[%emt 00:01:30]} Bg4 {[%clk 01:24:29]} {[%emt 00:01:04]} 12. Qc2
{[%clk 01:15:22]} {[%emt 00:16:29]} Bb6 {[%clk 01:22:12]} {[%emt 00:02:46]} 13.
Nc3 {[%clk 01:04:26]} {[%emt 00:11:27]} d4 {[%clk 01:02:57]} {[%emt 00:19:45]}
14. exd4 {[%clk 01:01:30]} {[%emt 00:03:26]} Rc8 {[%clk 00:52:28]} {[%emt
00:10:58]} 15. d5 {[%clk 00:33:28]} {[%emt 00:28:33]} Nb4 {[%clk 00:49:14]}
{[%emt 00:03:43]} 16. Qd2 {[%clk 00:31:21]} {[%emt 00:02:37]} Nbxd5 {[%clk
00:44:03]} {[%emt 00:05:41]} 17. Nxd5 {[%clk 00:31:19]} {[%emt 00:00:33]} Qxd5
{[%clk 00:37:11]} {[%emt 00:07:22]} 18. Bxf6 {[%clk 00:30:13]} {[%emt
00:01:36]} Qxd2 {[%clk 00:31:53]} {[%emt 00:05:47]} 19. Nxd2 {[%clk 00:30:25]}
{[%emt 00:00:18]} gxf6 {[%clk 00:32:19]} {[%emt 00:00:04]} 20. Nc4 {[%clk
00:29:14]} {[%emt 00:01:41]} Bd4 {[%clk 00:32:22]} {[%emt 00:00:26]} 21. Nd6
{[%clk 00:21:41]} {[%emt 00:08:03]} Bxa1 {[%clk 00:32:36]} {[%emt 00:00:18]} 22.
Rxa1 {[%clk 00:21:41]} {[%emt 00:00:29]} b6 {[%clk 00:32:56]} {[%emt 00:00:10]}
23. Bb7 {[%clk 00:08:31]} {[%emt 00:13:40]} Rcd8 {[%clk 00:31:52]} {[%emt
00:01:33]} 24. Nxe8 {[%clk 00:08:45]} {[%emt 00:00:17]} Rxe8 {[%clk 00:32:14]}
{[%emt 00:00:07]} 25. f3 {[%clk 00:08:33]} {[%emt 00:00:42]} Be6 {[%clk
00:30:39]} {[%emt 00:02:05]} 26. Rd1 {[%clk 00:05:09]} {[%emt 00:03:54]} Re7
{[%clk 00:30:40]} {[%emt 00:00:29]} 27. Ba6 {[%clk 00:05:26]} {[%emt 00:00:13]}
Rc7 {[%clk 00:30:38]} {[%emt 00:00:32]} 28. Rd2 {[%clk 00:05:31]} {[%emt
00:00:25]} Kf8 {[%clk 00:25:19]} {[%emt 00:05:49]} 29. Kf2 {[%clk 00:05:50]}
{[%emt 00:00:11]} Ke7 {[%clk 00:25:41]} {[%emt 00:00:07]} 30. Ke3 {[%clk
00:04:29]} {[%emt 00:01:51]} Rc5 {[%clk 00:22:42]} {[%emt 00:03:29]} 31. h4
{[%clk 00:02:04]} {[%emt 00:02:55]} h6 {[%clk 00:22:56]} {[%emt 00:00:16]} 32.
Bd3 {[%clk 00:01:14]} {[%emt 00:01:21]} a5 {[%clk 00:19:27]} {[%emt 00:03:59]}
33. Rc2 {[%clk 00:01:26]} {[%emt 00:00:18]} Kd6 {[%clk 00:19:40]} {[%emt
00:00:17]} 34. Kd4 {[%clk 00:00:41]} {[%emt 00:01:16]} Rd5+ {[%clk 00:11:35]}
{[%emt 00:08:35]} 35. Ke3 {[%clk 00:01:09]} {[%emt 00:00:02]} Re5+ {[%clk
00:04:59]} {[%emt 00:07:05]} 36. Kf4 {[%clk 00:01:22]} {[%emt 00:00:18]} b5
{[%clk 00:03:51]} {[%emt 00:01:37]} 37. Be4 {[%clk 00:01:26]} {[%emt 00:00:25]}
Rc5 {[%clk 00:02:17]} {[%emt 00:02:04]} 38. Rd2+ {[%clk 00:01:55]} {[%emt
00:00:02]} Kc7 {[%clk 00:01:58]} {[%emt 00:00:48]} 39. Ke3 {[%clk 00:01:41]}
{[%emt 00:00:45]} b4 {[%clk 00:01:42]} {[%emt 00:00:47]} 40. Kd4 {[%clk
00:01:01]} {[%emt 00:01:06]} Kb6 {[%clk 00:01:12]} {[%emt 00:01:03]} 41. Rc2
{[%clk 00:29:30]} {[%emt 00:02:00]} Rxc2 {[%clk 00:26:41]} {[%emt 00:05:02]} 42.
Bxc2 {[%clk 00:29:22]} {[%emt 00:00:37]} a4 {[%clk 00:27:09]} {[%emt 00:00:03]}
43. f4 {[%clk 00:06:13]} {[%emt 00:23:40]} f5 {[%clk 00:24:35]} {[%emt
00:03:03]} 44. Ke5 {[%clk 00:05:01]} {[%emt 00:01:43]} Kc5 {[%clk 00:24:52]}
{[%emt 00:00:12]} 45. Bxf5 {[%clk 00:03:59]} {[%emt 00:01:32]} Bd5 {[%clk
00:24:46]} {[%emt 00:00:36]} 46. Bc2 {[%clk 00:03:56]} {[%emt 00:00:34]} a3
{[%clk 00:24:57]} {[%emt 00:00:18]} 47. g4 {[%clk 00:03:11]} {[%emt 00:01:16]}
Bf3 {[%clk 00:21:41]} {[%emt 00:03:45]} 48. g5 {[%clk 00:03:08]} {[%emt
00:00:33]} hxg5 {[%clk 00:22:06]} {[%emt 00:00:05]} 49. hxg5 {[%clk 00:03:11]}
{[%emt 00:00:27]} f6 {[%clk 00:16:20]} {[%emt 00:06:16]} 50. Kxf6 {[%clk
00:03:10]} {[%emt 00:00:31]} Kd4 {[%clk 00:16:08]} {[%emt 00:00:42]} 51. g6
{[%clk 00:03:28]} {[%emt 00:00:11]} Bd5 {[%clk 00:16:15]} {[%emt 00:00:24]} 52.
f5 {[%clk 00:02:18]} {[%emt 00:01:41]} Kc3 {[%clk 00:13:14]} {[%emt 00:03:30]}
53. Ke5 {[%clk 00:02:29]} {[%emt 00:00:18]} Bc4 {[%clk 00:10:13]} {[%emt
00:03:32]} 54. bxc4 {[%clk 00:01:32]} {[%emt 00:01:28]} Kxc2 {[%clk 00:10:36]}
{[%emt 00:00:06]} 55. g7 {[%clk 00:01:50]} {[%emt 00:00:11]} b3 {[%clk
00:11:05]} {[%emt 00:00:02]} 56. g8=Q {[%clk 00:01:43]} {[%emt 00:00:37]} bxa2
{[%clk 00:10:29]} {[%emt 00:01:06]} 57. Qg2+ {[%clk 00:02:00]} {[%emt
00:00:13]} Kb1 {[%clk 00:10:47]} {[%emt 00:00:12]} 58. Qf1+ {[%clk 00:02:20]}
{[%emt 00:00:09]} Kb2 {[%clk 00:11:12]} {[%emt 00:00:05]} 59. f6 {[%clk
00:02:03]} {[%emt 00:00:47]} a1=Q {[%clk 00:11:27]} {[%emt 00:00:15]} 60. Qxa1+
{[%clk 00:02:26]} {[%emt 00:00:06]} Kxa1 {[%clk 00:11:53]} {[%emt 00:00:04]} 61.
f7 {[%clk 00:02:46]} {[%emt 00:00:10]} 1-0

[Event "Swedish Chess Championship 2021: Mastarklassen-Elit"]
[Site "Scandic Helsingborg Nord, Florettgatan 41, Helsingborg, Sweden"]
[Date "2021.07.09"]
[Round "7.5"]
[White "Ernst, Thomas"]
[Black "Zadruzny, Nicolaj"]
[Result "1/2-1/2"]
[TimeControl "90 minutes for 40 moves + 30 minutes for the rest of the game + 30 seconds per move from move one."]
[WhiteTitle "GM"]
[BlackTitle "FM"]
[WhiteFideId "1700065"]
[BlackFideId "1709550"]
[WhiteElo "2310"]
[BlackElo "2333"]

1. e4 {[%clk 01:30:57]} {[%emt 00:00:02]} e5 {[%clk 01:30:45]} {[%emt
00:00:15]} 2. Nf3 {[%clk 01:31:18]} {[%emt 00:00:10]} Nc6 {[%clk 01:31:06]}
{[%emt 00:00:09]} 3. Bb5 {[%clk 01:31:25]} {[%emt 00:00:23]} Nf6 {[%clk
01:31:27]} {[%emt 00:00:08]} 4. d3 {[%clk 01:31:44]} {[%emt 00:00:11]} Bc5
{[%clk 01:31:46]} {[%emt 00:00:12]} 5. c3 {[%clk 01:31:18]} {[%emt 00:00:56]}
O-O {[%clk 01:29:21]} {[%emt 00:02:54]} 6. O-O {[%clk 01:31:34]} {[%emt
00:00:13]} d6 {[%clk 01:28:27]} {[%emt 00:01:26]} 7. Nbd2 {[%clk 01:31:03]}
{[%emt 00:00:59]} a6 {[%clk 01:28:15]} {[%emt 00:00:43]} 8. Ba4 {[%clk
01:31:04]} {[%emt 00:00:29]} Ba7 {[%clk 01:28:09]} {[%emt 00:00:36]} 9. Re1
{[%clk 01:27:31]} {[%emt 00:04:02]} Ne7 {[%clk 01:27:50]} {[%emt 00:00:49]} 10.
Nf1 {[%clk 01:27:31]} {[%emt 00:00:31]} Ng6 {[%clk 01:27:28]} {[%emt 00:00:52]}
11. Ng3 {[%clk 01:17:48]} {[%emt 00:10:13]} h6 {[%clk 01:15:20]} {[%emt
00:12:39]} 12. h3 {[%clk 01:16:41]} {[%emt 00:01:36]} d5 {[%clk 01:13:01]}
{[%emt 00:02:49]} 13. exd5 {[%clk 01:16:06]} {[%emt 00:01:05]} Nxd5 {[%clk
01:12:48]} {[%emt 00:00:42]} 14. Bb3 {[%clk 01:14:32]} {[%emt 00:02:05]} c6
{[%clk 01:03:29]} {[%emt 00:09:49]} 15. d4 {[%clk 01:08:38]} {[%emt 00:06:23]}
exd4 {[%clk 01:03:41]} {[%emt 00:00:18]} 16. Nxd4 {[%clk 01:08:34]} {[%emt
00:00:34]} Qf6 {[%clk 00:49:39]} {[%emt 00:14:31]} 17. Ne4 {[%clk 01:07:23]}
{[%emt 00:01:40]} Qh4 {[%clk 00:45:12]} {[%emt 00:04:57]} 18. Nf3 {[%clk
01:07:04]} {[%emt 00:00:49]} Qd8 {[%clk 00:45:08]} {[%emt 00:00:35]} 19. Nd4
{[%clk 01:02:40]} {[%emt 00:04:52]} Qh4 {[%clk 00:44:37]} {[%emt 00:01:03]} 20.
Nf3 {[%clk 01:02:22]} {[%emt 00:00:48]} Qd8 {[%clk 00:45:01]} {[%emt 00:00:05]}
21. Nd4 {[%clk 01:02:25]} {[%emt 00:00:27]} Qh4 {[%emt 00:00:09]} 1/2-1/2

[Event "Swedish Chess Championship 2021: Mastarklassen-Elit"]
[Site "Scandic Helsingborg Nord, Florettgatan 41, Helsingborg, Sweden"]
[Date "2021.07.10"]
[Round "8.1"]
[White "Sorensen, Hampus"]
[Black "Ernst, Thomas"]
[Result "1-0"]
[TimeControl "90 minutes for 40 moves + 30 minutes for the rest of the game + 30 seconds per move from move one."]
[WhiteTitle "FM"]
[BlackTitle "GM"]
[WhiteFideId "8703884"]
[BlackFideId "1700065"]
[WhiteElo "2392"]
[BlackElo "2310"]

1. d4 {[%clk 01:30:53]} {[%emt 00:00:05]} d5 {[%clk 01:30:41]} {[%emt
00:00:19]} 2. c4 {[%clk 01:31:15]} {[%emt 00:00:09]} c6 {[%clk 01:30:59]}
{[%emt 00:00:11]} 3. Nf3 {[%clk 01:31:33]} {[%emt 00:00:12]} Nf6 {[%clk
01:31:18]} {[%emt 00:00:11]} 4. Nc3 {[%clk 01:31:48]} {[%emt 00:00:15]} dxc4
{[%clk 01:31:07]} {[%emt 00:00:41]} 5. e4 {[%clk 01:32:06]} {[%emt 00:00:13]}
b5 {[%clk 01:31:13]} {[%emt 00:00:24]} 6. Be2 {[%clk 01:32:15]} {[%emt
00:00:21]} b4 {[%clk 01:23:50]} {[%emt 00:07:53]} 7. Na4 {[%clk 01:32:23]}
{[%emt 00:00:23]} Nxe4 {[%clk 01:24:10]} {[%emt 00:00:09]} 8. Bxc4 {[%clk
01:32:36]} {[%emt 00:00:16]} e6 {[%clk 01:23:58]} {[%emt 00:00:42]} 9. O-O
{[%clk 01:31:57]} {[%emt 00:01:10]} Be7 {[%clk 01:22:55]} {[%emt 00:01:32]} 10.
Qe2 {[%clk 01:29:42]} {[%emt 00:02:45]} Nf6 {[%clk 01:21:18]} {[%emt 00:02:07]}
11. Bg5 {[%clk 01:26:15]} {[%emt 00:03:58]} O-O {[%clk 01:19:22]} {[%emt
00:02:27]} 12. Rfd1 {[%clk 01:21:26]} {[%emt 00:05:18]} Nd5 {[%clk 01:14:02]}
{[%emt 00:05:50]} 13. Bxe7 {[%clk 01:20:55]} {[%emt 00:01:02]} Qxe7 {[%clk
01:14:25]} {[%emt 00:00:07]} 14. Ne5 {[%clk 01:18:55]} {[%emt 00:02:29]} Nb6
{[%clk 01:13:48]} {[%emt 00:01:06]} 15. Bb3 {[%clk 01:14:07]} {[%emt 00:05:19]}
Nxa4 {[%clk 01:08:32]} {[%emt 00:05:46]} 16. Bxa4 {[%clk 01:14:36]} {[%emt
00:00:02]} Bb7 {[%clk 01:08:50]} {[%emt 00:00:11]} 17. Rac1 {[%clk 01:11:50]}
{[%emt 00:03:16]} Rc8 {[%clk 01:05:09]} {[%emt 00:04:11]} 18. Rc2 {[%clk
01:08:49]} {[%emt 00:03:31]} Qd6 {[%clk 00:56:30]} {[%emt 00:09:06]} 19. Qh5
{[%clk 00:59:46]} {[%emt 00:09:36]} Rc7 {[%clk 00:55:43]} {[%emt 00:01:14]} 20.
Rd3 {[%clk 00:48:51]} {[%emt 00:11:28]} g6 {[%clk 00:52:12]} {[%emt 00:04:00]}
21. Qh6 {[%clk 00:42:54]} {[%emt 00:06:28]} Nd7 {[%clk 00:50:19]} {[%emt
00:02:21]} 22. Nxf7 {[%clk 00:41:42]} {[%emt 00:01:43]} Kxf7 {[%clk 00:50:15]}
{[%emt 00:00:34]} 23. Qxh7+ {[%clk 00:41:56]} {[%emt 00:00:17]} Ke8 {[%clk
00:50:33]} {[%emt 00:00:11]} 24. d5 {[%clk 00:31:36]} {[%emt 00:10:50]} cxd5
{[%clk 00:45:27]} {[%emt 00:05:36]} 25. Rf3 {[%clk 00:26:50]} {[%emt 00:05:16]}
Qe5 {[%clk 00:43:44]} {[%emt 00:02:13]} 26. h3 {[%clk 00:17:00]} {[%emt
00:10:21]} Kd8 {[%clk 00:29:04]} {[%emt 00:15:09]} 27. Rf7 {[%clk 00:16:35]}
{[%emt 00:00:54]} 1-0